fUSD/lending_fUSD_20250112
["ID","MTS","AMOUNT","RATE_DAILY","PERIOD"]
[348604933,1736667055237,-500.0,0.00010891,2]
[348604934,1736667055245,-212.47570439,0.00010891,2]
[348604935,1736667055254,-500.0,0.00010891,2]
[348604936,1736667055263,-435.87873743,0.00010891,2]
[348604937,1736667055272,-545.63,0.00010891,2]
[348604938,1736667055280,-500.0,0.00010891,2]
[348604939,1736667055289,-500.0,0.00010891,2]
[348604940,1736667055298,-500.0,0.00010891,2]
[348604941,1736667055307,-500.0,0.00010891,2]
[348604942,1736667055316,-500.0,0.00010891,2]
[348604943,1736667055325,-500.0,0.00010891,2]
[348604944,1736667055333,-500.0,0.00010891,2]
[348604945,1736667055342,-500.0,0.00010891,2]
[348604946,1736667055351,-500.0,0.00010891,2]
[348604947,1736667055360,-500.0,0.00010891,2]
[348604948,1736667055368,-500.0,0.00010891,2]
[348604949,1736667055377,-500.0,0.00010891,2]
[348604950,1736667055386,-500.0,0.00010891,2]
[348604951,1736667055395,-500.0,0.00010891,2]
[348604952,1736667055404,-500.0,0.00010891,2]
[348604953,1736667055412,-500.0,0.00010891,2]
[348604954,1736667055421,-500.0,0.00010891,2]
[348604955,1736667055430,-500.0,0.00010891,2]
[348604956,1736667055439,-526.93,0.00010891,2]
[348604957,1736667055448,-500.0,0.00010891,2]
[348604958,1736667055458,-500.0,0.00010891,2]
[348604959,1736667055469,-509.91,0.00010891,2]
[348604960,1736667055478,-540.29,0.00010891,2]
[348604961,1736667055487,-500.0,0.00010891,2]
[348604962,1736667055496,-628.63834641,0.00010891,2]
[348604963,1736667055505,-500.0,0.00010891,2]
[348604964,1736667055515,-500.0,0.00010891,2]
[348604965,1736667055524,-500.0,0.00010891,2]
[348604966,1736667055533,-500.0,0.00010891,2]
[348604967,1736667055543,-500.0,0.00010891,2]
[348604968,1736667055554,-500.0,0.00010891,2]
[348604969,1736667055563,-500.0,0.00010891,2]
[348604970,1736667055572,-500.0,0.00010891,2]
[348604971,1736667055581,-500.0,0.00010891,2]
[348604972,1736667055591,-500.0,0.00010891,2]
[348604973,1736667055599,-836.34,0.00010891,2]
[348604974,1736667055609,-513.96774303,0.00010891,2]
[348604975,1736667055619,-500.0,0.00010891,2]
[348604976,1736667055627,-500.0,0.00010891,2]
[348604977,1736667055640,-500.0,0.00010891,2]
[348604978,1736667055650,-500.0,0.00010891,2]
[348604979,1736667055659,-751.36,0.00010891,2]
[348604980,1736667055668,-505.08,0.00010891,2]
[348604981,1736667055678,-500.0,0.00010891,2]
[348604982,1736667055687,-500.0,0.00010891,2]
[348604983,1736667055696,-691.57,0.00010891,2]
[348604984,1736667055706,-500.0,0.00010891,2]
[348604985,1736667055718,-1015.42,0.00010891,2]
[348604986,1736667055727,-500.0,0.00010891,2]
[348604987,1736667055737,-500.0,0.00010891,2]
[348604988,1736667055747,-500.0,0.00010891,2]
[348604989,1736667055757,-500.0,0.00010891,2]
[348604990,1736667055767,-533.72,0.00010891,2]
[348604991,1736667055776,-500.0,0.00010891,2]
[348604992,1736667055785,-500.0,0.00010891,2]
[348604993,1736667055794,-1045.02,0.00010891,2]
[348604994,1736667055803,-500.0,0.00010891,2]
[348604995,1736667055812,-500.0,0.00010891,2]
[348604996,1736667055821,-806.48,0.00010891,2]
[348604997,1736667055832,-534.86,0.00010891,2]
[348604998,1736667055844,-500.0,0.00010891,2]
[348604999,1736667055855,-1185.19,0.00010891,2]
[348605000,1736667055865,-500.0,0.00010891,2]
[348605001,1736667055875,-500.0,0.00010891,2]
[348605002,1736667055887,-1307.51,0.00010891,2]
[348605003,1736667055898,-500.0,0.00010891,2]
[348605004,1736667055907,-150.0,0.00010891,2]
[348605005,1736667055917,-1472.45,0.00010892,2]
[348605006,1736667055927,-1539.3,0.00010892,2]
[348605007,1736667055937,-2243.62,0.00010892,2]
[348605008,1736667055947,-6122.95,0.00010892,2]
[348605009,1736667055959,-1039.19,0.00010892,2]
[348605010,1736667055968,-740.68,0.00010892,2]
[348605011,1736667055979,-807.26,0.00010892,2]
[348605012,1736667055989,-2507.28,0.00010892,2]
[348605013,1736667055998,-500.0,0.00010892,2]
[348605014,1736667056008,-1678.74,0.00010892,2]
[348605015,1736667056018,-852.32,0.00010892,2]
[348605016,1736667056027,-1000.0,0.00010892,2]
[348605017,1736667056039,-1096.05,0.00010892,2]
[348605018,1736667056048,-856.61,0.00010892,2]
[348605019,1736667056058,-704.94,0.00010893,2]
[348605020,1736667056067,-500.0,0.00010893,2]
[348605021,1736667056077,-677.68,0.00010893,2]
[348605022,1736667056086,-753.88,0.00010893,2]
[348605023,1736667056096,-688.74,0.00010893,2]
[348605024,1736667056105,-500.0,0.00010893,2]
[348605025,1736667056114,-549.46,0.00010893,2]
[348605026,1736667056124,-500.0,0.00010893,2]
[348605027,1736667056133,-560.82,0.00010893,2]
[348605028,1736667056142,-500.0,0.00010893,2]
[348605029,1736667056152,-500.0,0.00010893,2]
[348605030,1736667056161,-500.0,0.00010893,2]
[348605031,1736667056170,-525.31,0.00010893,2]
[348605032,1736667056180,-500.0,0.00010893,2]
[348605033,1736667056190,-723.97,0.00010893,2]
[348605034,1736667056199,-500.0,0.00010893,2]
[348605035,1736667056208,-500.0,0.00010893,2]
[348605036,1736667056217,-500.0,0.00010893,2]
[348605037,1736667056227,-783.53,0.00010893,2]
[348605038,1736667056236,-500.0,0.00010893,2]
[348605039,1736667056246,-500.0,0.00010893,2]
[348605040,1736667056256,-853.38,0.00010893,2]
[348605041,1736667056265,-500.0,0.00010893,2]
[348605042,1736667056274,-529.78,0.00010893,2]
[348605043,1736667056283,-576.25,0.00010893,2]
[348605044,1736667056292,-500.0,0.00010893,2]
[348605045,1736667056302,-681.57,0.00010893,2]
[348605046,1736667056311,-648.72,0.00010893,2]
[348605047,1736667056320,-500.0,0.00010893,2]
[348605048,1736667056329,-680.63,0.00010893,2]
[348605049,1736667056339,-500.0,0.00010893,2]
[348605050,1736667056348,-555.22,0.00010893,2]
[348605051,1736667056357,-577.37,0.00010893,2]
[348605052,1736667056367,-500.0,0.00010893,2]
[348605053,1736667056377,-689.48,0.00010893,2]
[348605054,1736667056387,-500.0,0.00010893,2]
[348605055,1736667056397,-500.0,0.00010893,2]
[348605056,1736667056406,-500.0,0.00010893,2]
[348605057,1736667056415,-655.47,0.00010893,2]
[348605058,1736667056425,-724.04,0.00010893,2]
[348605059,1736667056434,-500.0,0.00010893,2]
[348605060,1736667056443,-500.0,0.00010893,2]
[348605061,1736667056454,-682.89,0.00010893,2]
[348605062,1736667056464,-886.81,0.00010893,2]
[348605063,1736667056474,-500.0,0.00010893,2]
[348605064,1736667056483,-447.89528784,0.00010893,2]
[348605065,1736667056492,-500.0,0.00010893,2]
[348605066,1736667056502,-500.0,0.00010893,2]
[348605067,1736667056511,-559.73,0.00010893,2]
[348605068,1736667056521,-542.39,0.00010893,2]
[348605069,1736667056530,-979.06,0.00010893,2]
[348605070,1736667056541,-816.58,0.00010893,2]
[348605071,1736667056552,-955.54,0.00010893,2]
[348605072,1736667056562,-931.46,0.00010893,2]
[348605073,1736667056571,-500.0,0.00010893,2]
[348605074,1736667056581,-528.71,0.00010893,2]
[348605075,1736667056590,-500.0,0.00010893,2]
[348605076,1736667056599,-500.0,0.00010893,2]
[348605077,1736667056608,-500.0,0.00010893,2]
[348605078,1736667056617,-500.0,0.00010893,2]
[348605079,1736667056626,-500.0,0.00010893,2]
[348605080,1736667056639,-2293.17,0.00010893,2]
[348605081,1736667056648,-614.31,0.00010893,2]
[348605082,1736667056657,-500.0,0.00010893,2]
[348605083,1736667056805,-500.0,0.00010893,2]
[348605084,1736667056815,-1906.57,0.00010893,2]
[348605085,1736667056825,-1140.71,0.00010894,2]
[348605086,1736667056834,-985.55,0.00010894,2]
[348605087,1736667056844,-1243.23,0.00010894,2]
[348605088,1736667056853,-856.77,0.00010894,2]
[348605089,1736667056863,-2013.23,0.00010894,2]
[348605090,1736667056874,-1135.39,0.00010894,2]
[348605091,1736667056883,-2416.87,0.00010894,2]
[348605092,1736667056894,-3164.76,0.00010894,2]
[348605093,1736667056905,-500.0,0.00010894,2]
[348605094,1736667056914,-500.0,0.00010894,2]
[348605095,1736667056924,-500.0,0.00010894,2]
[348605096,1736667056933,-1443.41,0.00010894,2]
[348605097,1736667056942,-500.0,0.00010894,2]
[348605098,1736667056952,-500.0,0.00010894,2]
[348605099,1736667056961,-500.0,0.00010894,2]
[348605100,1736667056969,-3815.79,0.00010894,2]
[348605101,1736667056978,-500.0,0.00010894,2]
[348605102,1736667056987,-500.0,0.00010894,2]
[348605103,1736667056996,-500.0,0.00010894,2]
[348605104,1736667057005,-500.0,0.00010894,2]
[348605105,1736667057015,-500.0,0.00010894,2]
[348605106,1736667057025,-500.0,0.00010894,2]
[348605107,1736667057035,-500.0,0.00010894,2]
[348605108,1736667057046,-500.0,0.00010894,2]
[348605109,1736667057055,-1152.21,0.00010894,2]
[348605110,1736667057065,-500.0,0.00010894,2]
[348605111,1736667057074,-696.73,0.00010894,2]
[348605112,1736667057083,-500.0,0.00010894,2]
[348605113,1736667057091,-1011.22,0.00010894,2]
[348605114,1736667057101,-514.87,0.00010894,2]
[348605115,1736667057112,-500.0,0.00010894,2]
[348605116,1736667057122,-658.24,0.00010894,2]
[348605117,1736667057133,-500.0,0.00010894,2]
[348605118,1736667057143,-686.12,0.00010894,2]
[348605119,1736667057152,-534.04,0.00010894,2]
[348605120,1736667057161,-500.0,0.00010894,2]
[348605121,1736667057171,-1459.5,0.00010894,2]
[348605122,1736667057181,-791.96,0.00010894,2]
[348605123,1736667057190,-500.0,0.00010894,2]
[348605124,1736667057200,-500.0,0.00010894,2]
[348605125,1736667057209,-500.0,0.00010894,2]
[348605126,1736667057219,-1493.23,0.00010894,2]
[348605127,1736667057228,-901.06,0.00010894,2]
[348605128,1736667057237,-507.1,0.00010894,2]
[348605129,1736667057247,-515.33,0.00010894,2]
[348605130,1736667057257,-1868.15,0.00010894,2]
[348605131,1736667057266,-500.0,0.00010894,2]
[348605132,1736667057275,-916.02,0.00010894,2]
[348605133,1736667057285,-500.0,0.00010894,2]
[348605134,1736667057296,-1355.39,0.00010894,2]
[348605135,1736667057305,-645.68,0.00010894,2]
[348605136,1736667057314,-500.0,0.00010894,2]
[348605137,1736667057324,-3514.58,0.00010894,2]
[348605138,1736667057333,-500.0,0.00010894,2]
[348605139,1736667057343,-1548.15,0.00010894,2]
[348605140,1736667057352,-2255.89,0.00010894,2]
[348605141,1736667057361,-1366.82,0.00010894,2]
[348605142,1736667057371,-1534.83,0.00010894,2]
[348605143,1736667057380,-500.0,0.00010894,2]
[348605144,1736667057389,-832.36,0.00010894,2]
[348605145,1736667057399,-1983.26,0.00010894,2]
[348605146,1736667057408,-150.0,0.00010896,2]
[348605147,1736667057417,-500.61246,0.000109,2]
[348605148,1736667057426,-400.0,0.000109,3]
[348605149,1736667057435,-284.92745627,0.000109,2]
[348605150,1736667057443,-284.92745626,0.000109,2]
[348605151,1736667057452,-284.92745626,0.000109,2]
[348605152,1736667057462,-284.92745626,0.000109,2]
[348605153,1736667057471,-150.0,0.00010905,2]
[348605154,1736667057480,-150.0,0.00010908,2]
[348605155,1736667057490,-3253.45,0.00010916,2]
[348605156,1736667057500,-1072.73,0.00010916,2]
[348605157,1736667057509,-625.9,0.00010916,2]
[348605158,1736667057518,-500.0,0.00010916,2]
[348605159,1736667057527,-952.54,0.00010916,2]
[348605160,1736667057539,-500.0,0.00010916,2]
[348605161,1736667057548,-3429.69,0.00010916,2]
[348605162,1736667057557,-1216.87,0.00010916,2]
[348605163,1736667057566,-3245.02,0.00010916,2]
[348605164,1736667057576,-2519.46,0.00010916,2]
[348605165,1736667057585,-8206.37,0.00010916,2]
[348605166,1736667057593,-500.0,0.00010916,2]
[348605167,1736667057602,-813.0,0.00010916,2]
[348605168,1736667057612,-1165.52,0.00010916,2]
[348605169,1736667057623,-2102.98,0.00010916,2]
[348605170,1736667057632,-500.0,0.00010916,2]
[348605171,1736667057641,-5284.68,0.00010916,2]
[348605172,1736667057653,-1032.55,0.00010916,2]
[348605173,1736667057662,-1328.96,0.00010916,2]
[348605174,1736667057672,-866.63,0.00010916,2]
[348605175,1736667057682,-1899.49,0.00010916,2]
[348605176,1736667057691,-562.51,0.00010916,2]
[348605177,1736667057701,-1425.35,0.00010916,2]
[348605178,1736667057710,-150.0,0.00010922,2]
[348605179,1736667057720,-150.0,0.00010925,2]
[348605180,1736667057730,-150.0,0.00010928,2]
[348605181,1736667057740,-1000.0,0.00010929,2]
[348605182,1736667057749,-1828.46,0.0001093,2]
[348605183,1736667057760,-1141.28,0.0001093,2]
[348605184,1736667057769,-827.4,0.0001093,2]
[348605185,1736667057778,-1689.13,0.0001093,2]
[348605186,1736667057788,-500.0,0.0001093,2]
[348605187,1736667057797,-2121.53,0.0001093,2]
[348605188,1736667057807,-2255.31,0.0001093,2]
[348605189,1736667057817,-3126.59,0.0001093,2]
[348605190,1736667057826,-1903.88,0.0001093,2]
[348605191,1736667057836,-1771.71,0.0001093,2]
[348605192,1736667057847,-500.0,0.0001093,2]
[348605193,1736667057857,-1314.7,0.0001093,2]
[348605194,1736667057868,-3323.35,0.0001093,2]
[348605195,1736667057878,-740.433425,0.0001093,2]
[348605196,1736667057887,-1532.36,0.0001093,2]
[348605197,1736667057897,-1280.06,0.0001093,2]
[348605198,1736667057906,-500.0,0.0001093,2]
[348605199,1736667057916,-774.04068,0.0001093,2]
[348605200,1736667057926,-500.0,0.0001093,2]
[348605201,1736667057936,-1201.32,0.0001093,2]
[348605202,1736667057946,-915.0,0.0001093,2]
[348605203,1736667057955,-988.31,0.0001093,2]
[348605204,1736667057963,-594.17,0.0001093,2]
[348605205,1736667057975,-1018.91,0.0001093,2]
[348605206,1736667057984,-883.99,0.0001093,2]
[348605207,1736667057993,-2167.53,0.0001093,2]
[348605208,1736667058003,-508.33,0.00010931,2]
[348605209,1736667058012,-610.03,0.00010931,2]
[348605210,1736667058023,-500.0,0.00010931,2]
[348605211,1736667058033,-950.37,0.00010931,2]
[348605212,1736667058042,-659.75,0.00010931,2]
[348605213,1736667058052,-744.04,0.00010931,2]
[348605214,1736667058062,-829.84,0.00010931,2]
[348605215,1736667058071,-557.69,0.00010931,2]
[348605216,1736667058080,-500.0,0.00010931,2]
[348605217,1736667058090,-500.0,0.00010931,2]
[348605218,1736667058099,-500.0,0.00010931,2]
[348605219,1736667058108,-649.54,0.00010931,2]
[348605220,1736667058118,-799.04,0.00010931,2]
[348605221,1736667058127,-849.46,0.00010931,2]
[348605222,1736667058137,-500.0,0.00010931,2]
[348605223,1736667058148,-735.55,0.00010931,2]
[348605224,1736667058157,-500.0,0.00010931,2]
[348605225,1736667058167,-500.0,0.00010931,2]
[348605226,1736667058176,-500.0,0.00010931,2]
[348605227,1736667058185,-500.0,0.00010931,2]
[348605228,1736667058194,-887.28,0.00010931,2]
[348605229,1736667058204,-500.0,0.00010931,2]
[348605230,1736667058214,-500.0,0.00010931,2]
[348605231,1736667058224,-808.9,0.00010931,2]
[348605232,1736667058233,-570.07,0.00010931,2]
[348605233,1736667058242,-830.85,0.00010931,2]
[348605234,1736667058251,-500.0,0.00010931,2]
[348605235,1736667058261,-500.0,0.00010931,2]
[348605236,1736667058271,-892.42,0.00010931,2]
[348605237,1736667058280,-500.0,0.00010931,2]
[348605238,1736667058289,-500.0,0.00010931,2]
[348605239,1736667058298,-500.0,0.00010931,2]
[348605240,1736667058307,-500.0,0.00010931,2]
[348605241,1736667058317,-500.0,0.00010931,2]
[348605242,1736667058326,-932.06,0.00010931,2]
[348605243,1736667058335,-500.0,0.00010931,2]
[348605244,1736667058344,-540.94,0.00010931,2]
[348605245,1736667058354,-500.0,0.00010931,2]
[348605246,1736667058362,-500.0,0.00010931,2]
[348605247,1736667058371,-500.0,0.00010931,2]
[348605248,1736667058380,-761.91,0.00010931,2]
[348605249,1736667058390,-756.44,0.00010931,2]
[348605250,1736667058399,-816.1,0.00010931,2]
[348605251,1736667058409,-500.0,0.00010931,2]
[348605252,1736667058418,-500.0,0.00010931,2]
[348605253,1736667058428,-639.6,0.00010931,2]
[348605254,1736667058437,-771.9,0.00010931,2]
[348605255,1736667058446,-784.46,0.00010931,2]
[348605256,1736667058455,-661.99,0.00010931,2]
[348605257,1736667058464,-500.0,0.00010931,2]
[348605258,1736667058474,-500.0,0.00010931,2]
[348605259,1736667058483,-500.0,0.00010931,2]
[348605260,1736667058492,-615.1,0.00010931,2]
[348605261,1736667058503,-698.67,0.00010931,2]
[348605262,1736667058512,-537.18,0.00010931,2]
[348605263,1736667058522,-501.04,0.00010931,2]
[348605264,1736667058531,-1394.6,0.00010931,2]
[348605265,1736667058541,-655.9,0.00010931,2]
[348605266,1736667058550,-500.0,0.00010931,2]
[348605267,1736667058559,-500.0,0.00010931,2]
[348605268,1736667058569,-500.0,0.00010931,2]
[348605269,1736667058579,-582.13,0.00010931,2]
[348605270,1736667058588,-668.04,0.00010931,2]
[348605271,1736667058597,-4381.55,0.00010931,2]
[348605272,1736667058606,-903.65,0.00010931,2]
[348605273,1736667058616,-2711.95,0.00010931,2]
[348605274,1736667058625,-515.95,0.00010931,2]
[348605275,1736667058634,-633.91,0.00010931,2]
[348605276,1736667058644,-624.04,0.00010931,2]
[348605277,1736667058655,-500.0,0.00010931,2]
[348605278,1736667058665,-746.76,0.00010931,2]
[348605279,1736667058674,-2853.92,0.00010931,2]
[348605280,1736667058683,-500.0,0.00010931,2]
[348605281,1736667058693,-500.0,0.00010931,2]
[348605282,1736667058703,-570.29,0.00010931,2]
[348605283,1736667058713,-837.01,0.00010931,2]
[348605284,1736667058725,-500.0,0.00010931,2]
[348605285,1736667058735,-153.93207,0.00010939,5]
[348605286,1736667058745,-150.0,0.00010942,2]
[348605287,1736667058754,-250.0,0.00010949,2]
[348605288,1736667058764,-500.0,0.00010959,2]
[348605289,1736667058773,-2000.0,0.00010959,2]
[348605290,1736667058782,-200.0,0.00010959,2]
[348605291,1736667058791,-222.87465356,0.00010959,2]
[348605292,1736667058801,-228.87128237,0.00010959,2]
[348605293,1736667058811,-150.1627303,0.00010959,2]
[348605294,1736667058820,-222.37492103,0.00010959,2]
[348605295,1736667058830,-150.0,0.00010959,2]
[348605296,1736667058839,-253.41757428,0.00010959,2]
[348605297,1736667058848,-1178.86066,0.0001096,2]
[348605298,1736667058857,-763.64663912,0.0001096,2]
[348605299,1736667058866,-560.8081372,0.0001096,2]
[348605300,1736667058876,-3290.707902,0.0001096,2]
[348605301,1736667058886,-251.26937233,0.00010962,2]
[348605302,1736667058895,-421.04,0.00010967,2]
[348605303,1736667058905,-23250.52262671,0.00010968,2]
[348605304,1736667058914,-151.0,0.00010968,2]
[348605305,1736667058923,-150.0,0.00010968,2]
[348605306,1736667058933,-150.0,0.00010968,2]
[348605307,1736667058942,-500.0,0.00010968,2]
[348605308,1736667058952,-150.0,0.00010968,2]
[348605309,1736667058962,-500.0,0.00010968,2]
[348605310,1736667058971,-500.0,0.00010968,2]
[348605311,1736667058980,-500.0,0.00010968,2]
[348605312,1736667058989,-150.0,0.00010968,2]
[348605313,1736667058999,-500.0,0.00010968,2]
[348605314,1736667059008,-500.0,0.00010968,2]
[348605315,1736667059018,-500.0,0.00010968,2]
[348605316,1736667059027,-500.0,0.00010968,2]
[348605317,1736667059037,-500.0,0.00010968,2]
[348605318,1736667059047,-500.0,0.00010968,2]
[348605319,1736667059057,-500.0,0.00010968,2]
[348605320,1736667059067,-500.0,0.00010968,2]
[348605321,1736667059077,-500.0,0.00010968,2]
[348605322,1736667059087,-500.0,0.00010968,2]
[348605323,1736667059097,-500.0,0.00010968,2]
[348605324,1736667059108,-500.0,0.00010968,2]
[348605325,1736667059118,-500.0,0.00010968,2]
[348605326,1736667059129,-500.0,0.00010968,2]
[348605327,1736667059139,-500.0,0.00010968,2]
[348605328,1736667059150,-500.0,0.00010968,2]
[348605329,1736667059159,-500.0,0.00010968,2]
[348605330,1736667059170,-500.0,0.00010968,2]
[348605331,1736667059180,-500.0,0.00010968,2]
[348605332,1736667059189,-3673.79630789,0.00010968,2]
[348605333,1736667059199,-500.0,0.00010968,2]
[348605334,1736667059210,-500.0,0.00010968,2]
[348605335,1736667059219,-500.0,0.00010968,2]
[348605336,1736667059228,-500.0,0.00010968,2]
[348605337,1736667059237,-500.0,0.00010968,2]
[348605338,1736667059247,-2374.54071931,0.00010968,2]
[348605339,1736667059256,-500.0,0.00010968,2]
[348605340,1736667059266,-500.0,0.00010968,2]
[348605341,1736667059276,-500.0,0.00010968,2]
[348605342,1736667059286,-500.0,0.00010968,2]
[348605343,1736667059295,-500.0,0.00010968,2]
[348605344,1736667059304,-413.85909866,0.00010968,2]
[348605345,1736667059313,-500.0,0.00010968,2]
[348605346,1736667059323,-500.0,0.00010968,2]
[348605347,1736667059331,-500.0,0.00010968,2]
[348605348,1736667059341,-989.90157266,0.00010968,2]
[348605349,1736667059488,-500.0,0.00010968,2]
[348605350,1736667059498,-500.0,0.00010968,2]
[348605351,1736667059507,-500.0,0.00010968,2]
[348605352,1736667059517,-500.0,0.00010968,2]
[348605353,1736667059526,-500.0,0.00010968,2]
[348605354,1736667059535,-500.0,0.00010968,2]
[348605355,1736667059546,-500.0,0.00010968,2]
[348605356,1736667059556,-500.0,0.00010968,2]
[348605357,1736667059565,-500.0,0.00010968,2]
[348605358,1736667059575,-500.0,0.00010968,2]
[348605359,1736667059584,-500.0,0.00010968,2]
[348605360,1736667059594,-500.0,0.00010968,2]
[348605361,1736667059604,-500.0,0.00010968,2]
[348605362,1736667059614,-500.0,0.00010968,2]
[348605363,1736667059623,-500.0,0.00010968,2]
[348605364,1736667059633,-500.0,0.00010968,2]
[348605365,1736667059642,-500.0,0.00010968,2]
[348605366,1736667059656,-500.0,0.00010968,2]
[348605367,1736667059666,-500.0,0.00010968,2]
[348605368,1736667059675,-500.0,0.00010968,2]
[348605369,1736667059685,-500.0,0.00010968,2]
[348605370,1736667059695,-500.0,0.00010968,2]
[348605371,1736667059704,-500.0,0.00010968,2]
[348605372,1736667059714,-500.0,0.00010968,2]
[348605373,1736667059724,-500.0,0.00010968,2]
[348605374,1736667059734,-500.0,0.00010968,2]
[348605375,1736667059744,-500.0,0.00010968,2]
[348605376,1736667059754,-500.0,0.00010968,2]
[348605377,1736667059763,-500.0,0.00010968,2]
[348605378,1736667059772,-362.40187427,0.00010968,2]
[348605379,1736667060172,-137.59812573,0.00010968,2]
[348605380,1736667060182,-500.0,0.00010968,2]
[348605381,1736667060191,-500.0,0.00010968,2]
[348605382,1736667060202,-500.0,0.00010968,2]
[348605383,1736667060211,-500.0,0.00010968,2]
[348605384,1736667060221,-500.0,0.00010968,2]
[348605385,1736667060231,-500.0,0.00010968,2]
[348605386,1736667060240,-500.0,0.00010968,2]
[348605387,1736667060250,-500.0,0.00010968,2]
[348605388,1736667060259,-500.0,0.00010968,2]
[348605389,1736667060268,-500.0,0.00010968,2]
[348605390,1736667060278,-500.0,0.00010968,2]
[348605391,1736667060287,-500.0,0.00010968,2]
[348605392,1736667060296,-500.0,0.00010968,2]
[348605393,1736667060305,-500.0,0.00010968,2]
[348605394,1736667060315,-500.0,0.00010968,2]
[348605395,1736667060324,-500.0,0.00010968,2]
[348605396,1736667060333,-500.0,0.00010968,2]
[348605397,1736667060342,-500.0,0.00010968,2]
[348605398,1736667060351,-4.9107432,0.00010968,2]
[348605399,1736667060650,-500.0,9.834e-05,2]
[348605400,1736667060661,-500.0,9.834e-05,2]
[348605401,1736667060671,-500.0,0.00010108,2]
[348605402,1736667060828,-500.0,0.00010382,2]
[348605403,1736667060837,-321.1363355,0.00010656,2]
[348605404,1736667061130,-178.8636645,0.00010656,2]
[348605405,1736667061140,-500.0,0.0001093,2]
[348605406,1736667061149,-763.16,0.00010931,2]
[348605407,1736667061162,-495.0892568,0.00010968,2]
[348605408,1736667061171,-500.0,0.00010968,2]
[348605409,1736667061181,-500.0,0.00010968,2]
[348605410,1736667061190,-500.0,0.00010968,2]
[348605411,1736667061343,-500.0,0.00010968,2]
[348605412,1736667061353,-500.0,0.00010968,2]
[348605413,1736667061363,-500.0,0.00010968,2]
[348605414,1736667061372,-500.0,0.00010968,2]
[348605415,1736667061381,-500.0,0.00010968,2]
[348605416,1736667061391,-500.0,0.00010968,2]
[348605417,1736667061400,-500.0,0.00010968,2]
[348605418,1736667061410,-500.0,0.00010968,2]
[348605419,1736667061419,-500.0,0.00010968,2]
[348605420,1736667061428,-500.0,0.00010968,2]
[348605421,1736667061437,-500.0,0.00010968,2]
[348605422,1736667061446,-500.0,0.00010968,2]
[348605423,1736667061457,-51116.12223224,0.00010968,2]
[348605424,1736667061467,-2418.95978363,0.00010968,2]
[348605425,1736667061477,-1827.96061995,0.00010968,2]
[348605426,1736667061487,-405.54523979,0.00010968,2]
[348605427,1736667061497,-999.0,0.00010969,2]
[348605428,1736667061506,-2154.66579257,0.00010969,2]
[348605429,1736667061516,-200.0,0.00010969,2]
[348605430,1736667061526,-629.85990951,0.0001097,2]
[348605431,1736667061535,-629.8599095,0.0001097,2]
[348605432,1736667061545,-200.0,0.0001097,2]